fUST/lending_fUST_20241220
["ID","MTS","AMOUNT","RATE_DAILY","PERIOD"]
[346088787,1734697844464,-500.0,0.00022465,6]
[346088788,1734697844474,-500.0,0.00022465,6]
[346088789,1734697844483,-500.0,0.00022465,6]
[346088790,1734697844492,-500.0,0.00022465,6]
[346088791,1734697844502,-683.33,0.00022465,6]
[346088792,1734697844512,-500.0,0.00022465,6]
[346088793,1734697844521,-533.26,0.00022465,6]
[346088794,1734697844531,-500.0,0.00022465,6]
[346088795,1734697844540,-270.03,0.00022465,6]
[346088796,1734697844549,-500.0,0.00022465,6]
[346088797,1734697844559,-500.0,0.00022465,6]
[346088798,1734697844574,-500.0,0.00022465,6]
[346088799,1734697844583,-500.0,0.00022465,6]
[346088800,1734697844593,-500.0,0.00022465,6]
[346088801,1734697844602,-500.0,0.00022465,6]
[346088802,1734697844611,-500.0,0.00022465,6]
[346088803,1734697844621,-199.51,0.00022465,6]
[346088804,1734697844630,-1901.23,0.00022465,6]
[346088805,1734697844640,-500.0,0.00022465,6]
[346088806,1734697844649,-572.28,0.00022465,6]
[346088807,1734697844659,-509.77,0.00022465,6]
[346088808,1734697844827,-745.59,0.00022465,6]
[346088809,1734697844838,-500.0,0.00022465,6]
[346088810,1734697844847,-2598.63,0.00022465,6]
[346088811,1734697844857,-631.75,0.00022465,6]
[346088812,1734697844866,-5387.38,0.00022465,6]
[346088813,1734697844876,-595.1,0.00022465,6]
[346088814,1734697844886,-3944.95,0.00022465,6]
[346088815,1734697844897,-2330.66,0.00022465,6]
[346088816,1734697844907,-500.0,0.00022465,6]
[346088817,1734697844917,-1274.43,0.00022465,6]
[346088818,1734697844926,-500.0,0.00022465,6]
[346088819,1734697844936,-500.0,0.00022465,6]
[346088820,1734697844945,-614.45,0.00022465,6]
[346088821,1734697844955,-500.0,0.00022465,6]
[346088822,1734697844965,-796.85,0.00022465,2]
[346088823,1734697844975,-500.0,0.00022465,6]
[346088824,1734697844990,-500.0,0.00022465,6]
[346088825,1734697845000,-500.0,0.00022465,6]
[346088826,1734697845011,-500.0,0.00022465,6]
[346088827,1734697845022,-500.0,0.00022465,6]
[346088828,1734697845031,-500.0,0.00022465,6]
[346088829,1734697845041,-500.0,0.00022465,6]
[346088830,1734697845051,-634.46,0.00022465,6]
[346088831,1734697845062,-500.0,0.00022465,6]
[346088832,1734697845075,-769.76,0.00022465,6]
[346088833,1734697845085,-500.0,0.00022465,6]
[346088834,1734697845094,-500.0,0.00022465,6]
[346088835,1734697845104,-629.1,0.00022465,6]
[346088836,1734697845113,-1059.62,0.00022465,6]
[346088837,1734697845122,-500.0,0.00022465,6]
[346088838,1734697845131,-500.0,0.00022465,6]
[346088839,1734697845140,-500.0,0.00022465,6]
[346088840,1734697845149,-1107.46,0.00022465,6]
[346088841,1734697845159,-500.0,0.00022465,6]
[346088842,1734697845168,-530.11,0.00022465,6]
[346088843,1734697845177,-639.41180808,0.00022465,6]
[346088844,1734697845186,-500.0,0.00022465,6]
[346088845,1734697845196,-1410.83,0.00022465,6]
[346088846,1734697845206,-500.0,0.00022465,6]
[346088847,1734697845215,-500.0,0.00022465,6]
[346088848,1734697845225,-527.67,0.00022465,6]
[346088849,1734697845233,-500.0,0.00022465,6]
[346088850,1734697845242,-500.0,0.00022465,6]
[346088851,1734697845252,-500.0,0.00022465,6]
[346088852,1734697845262,-500.0,0.00022465,6]
[346088853,1734697845271,-500.0,0.00022465,6]
[346088854,1734697845281,-5761.07285172,0.00022465,6]
[346088855,1734697845294,-4228.61714828,0.00022465,6]
[346088856,1734697845304,-440.40285973,0.00022465,6]
[346088857,1734697845315,-500.0,0.00022465,6]
[346088858,1734697845325,-500.0,0.00022521,2]
[346088859,1734697845335,-511.02711415,0.00022521,2]
[346088860,1734697845344,-1208.55287784,0.00022522,2]
[346088861,1734697845356,-2443.09782076,0.00022522,2]
[346088862,1734697845366,-500.0,0.00022636,2]
[346088863,1734697845376,-510.86564652,0.00022673,2]
[346088864,1734697845386,-500.0,0.00022703,2]
[346088865,1734697845396,-500.0,0.00022703,2]
[346088866,1734697845405,-3954.39208394,0.00022715,2]
[346088867,1734697845415,-605.34644728,0.00022721,2]
[346088868,1734697845427,-394.65355272,0.00022721,2]
[346088869,1734697845437,-500.0,0.00022739,6]
[346088870,1734697845446,-552.87,0.00022739,6]
[346088871,1734697845456,-500.0,0.00022739,6]
[346088872,1734697845466,-500.0,0.00022739,6]
[346088873,1734697845475,-598.59,0.00022739,6]
[346088874,1734697845484,-500.0,0.00022739,6]
[346088875,1734697845494,-500.0,0.00022739,6]
[346088876,1734697845504,-500.0,0.00022739,6]
[346088877,1734697845514,-500.0,0.00022739,6]
[346088878,1734697845524,-500.0,0.00022739,6]
[346088879,1734697845534,-500.0,0.00022739,6]
[346088880,1734697845543,-454.0872395,0.00022739,6]
[346088881,1734697845552,-500.0,0.00022739,6]
[346088882,1734697845562,-683.33,0.00022739,6]
[346088883,1734697845573,-500.0,0.00022739,6]
[346088884,1734697845582,-533.26,0.00022739,6]
[346088885,1734697845592,-500.0,0.00022739,6]
[346088886,1734697845601,-500.0,0.00022739,6]
[346088887,1734697845610,-376.21960763,0.00022739,6]
[346088888,1734697845649,-123.78039237,0.00022739,6]
[346088889,1734697845659,-500.0,0.00022739,6]
[346088890,1734697845668,-500.0,0.00022739,6]
[346088891,1734697845678,-500.0,0.00022739,6]
[346088892,1734697845688,-500.0,0.00022739,6]
[346088893,1734697845697,-500.0,0.00022739,6]
[346088894,1734697845706,-1901.23,0.00022739,6]
[346088895,1734697845716,-500.0,0.00022739,6]
[346088896,1734697845725,-572.28,0.00022739,6]
[346088897,1734697845735,-509.77,0.00022739,6]
[346088898,1734697845744,-745.59,0.00022739,6]
[346088899,1734697845753,-500.0,0.00022739,6]
[346088900,1734697845763,-2598.63,0.00022739,6]
[346088901,1734697845772,-631.75,0.00022739,6]
[346088902,1734697845782,-5387.38,0.00022739,6]
[346088903,1734697845791,-595.1,0.00022739,6]
[346088904,1734697845800,-3944.95,0.00022739,6]
[346088905,1734697845810,-2330.66,0.00022739,6]
[346088906,1734697845822,-500.0,0.00022739,6]
[346088907,1734697845831,-1274.43,0.00022739,6]
[346088908,1734697845840,-500.0,0.00022739,6]
[346088909,1734697845850,-500.0,0.00022739,6]
[346088910,1734697845859,-614.45,0.00022739,6]
[346088911,1734697845870,-500.0,0.00022739,6]
[346088912,1734697845881,-796.85,0.00022739,2]
[346088914,1734697845890,-500.0,0.00022739,6]
[346088916,1734697845900,-500.0,0.00022739,6]
[346088917,1734697845909,-500.0,0.00022739,6]
[346088918,1734697845918,-500.0,0.00022739,6]
[346088919,1734697845927,-500.0,0.00022739,6]
[346088920,1734697845937,-500.0,0.00022739,6]
[346088921,1734697845946,-500.0,0.00022739,6]
[346088923,1734697845955,-500.0,0.00022739,6]
[346088925,1734697845964,-769.76,0.00022739,6]
[346088926,1734697845974,-500.0,0.00022739,6]
[346088927,1734697845988,-500.0,0.00022739,6]
[346088928,1734697845997,-629.1,0.00022739,6]
[346088929,1734697846007,-1059.62,0.00022739,6]
[346088932,1734697846016,-500.0,0.00022739,6]
[346088934,1734697846027,-500.0,0.00022739,6]
[346088935,1734697846036,-500.0,0.00022739,6]
[346088936,1734697846045,-1107.46,0.00022739,6]
[346088937,1734697846055,-500.0,0.00022739,6]
[346088938,1734697846069,-530.11,0.00022739,6]
[346088939,1734697846079,-579.00996261,0.00022739,6]
[346088940,1734697846088,-1410.83,0.00022739,6]
[346088941,1734697846097,-500.0,0.00022739,6]
[346088942,1734697846106,-500.0,0.00022739,6]
[346088943,1734697846116,-527.67,0.00022739,6]
[346088944,1734697846125,-500.0,0.00022739,6]
[346088945,1734697846135,-500.0,0.00022739,6]
[346088947,1734697846144,-500.0,0.00022739,6]
[346088949,1734697846153,-251.50218789,0.00022739,6]
[346088950,1734697846162,-9989.69,0.00022739,6]
[346088951,1734697846172,-500.0,0.00022739,6]
[346088952,1734697846181,-506.45024159,0.00022743,2]
[346088953,1734697846191,-2154.0,0.00022799,2]
[346088955,1734697846200,-533.0,0.00022799,2]
[346088957,1734697846209,-2368.0,0.00022799,2]
[346088958,1734697846218,-420.0,0.00022842,2]
[346088959,1734697846228,-500.0,0.0002291,2]
[346088960,1734697846237,-7900.0,0.00023,5]
[346088961,1734697846247,-500.0,0.00023013,6]
[346088962,1734697846256,-552.87,0.00023013,6]
[346088964,1734697846266,-500.0,0.00023013,6]
[346088966,1734697846275,-500.0,0.00023013,6]
[346088968,1734697846284,-598.59,0.00023013,6]
[346088969,1734697846293,-500.0,0.00023013,6]
[346088970,1734697846302,-500.0,0.00023013,6]
[346088971,1734697846312,-500.0,0.00023013,6]
[346088972,1734697846324,-500.0,0.00023013,6]
[346088973,1734697846333,-500.0,0.00023013,6]
[346088974,1734697846343,-500.0,0.00023013,6]
[346088975,1734697846352,-500.0,0.00023013,6]
[346088976,1734697846361,-683.33,0.00023013,6]
[346088977,1734697846372,-500.0,0.00023013,6]
[346088978,1734697846382,-533.26,0.00023013,6]
[346088979,1734697846392,-500.0,0.00023013,6]
[346088980,1734697846402,-500.0,0.00023013,6]
[346088981,1734697846411,-500.0,0.00023013,6]
[346088983,1734697846420,-500.0,0.00023013,6]
[346088985,1734697846430,-500.0,0.00023013,6]
[346088986,1734697846440,-500.0,0.00023013,6]
[346088987,1734697846449,-500.0,0.00023013,6]
[346088988,1734697846458,-500.0,0.00023013,6]
[346088989,1734697846467,-1901.23,0.00023013,6]
[346088990,1734697846477,-500.0,0.00023013,6]
[346088991,1734697846486,-572.28,0.00023013,6]
[346088992,1734697846495,-509.77,0.00023013,6]
[346088993,1734697846505,-745.59,0.00023013,6]
[346088995,1734697846515,-500.0,0.00023013,6]
[346088997,1734697846524,-631.75,0.00023013,6]
[346088998,1734697846533,-2598.63,0.00023013,6]
[346088999,1734697846543,-5387.38,0.00023013,6]
[346089000,1734697846553,-595.1,0.00023013,6]
[346089001,1734697846565,-3944.95,0.00023013,6]
[346089003,1734697846575,-2330.66,0.00023013,6]
[346089005,1734697846584,-500.0,0.00023013,6]
[346089006,1734697846594,-1274.43,0.00023013,6]
[346089007,1734697846603,-339.46329239,0.00023013,6]
[346089008,1734697846613,-500.0,0.00023013,6]
[346089009,1734697846622,-614.45,0.00023013,6]
[346089010,1734697846632,-500.0,0.00023013,6]
[346089011,1734697846642,-796.85,0.00023013,2]
[346089012,1734697846652,-500.0,0.00023013,6]
[346089013,1734697846662,-500.0,0.00023013,6]
[346089014,1734697846670,-500.0,0.00023013,6]
[346089015,1734697846680,-500.0,0.00023013,6]
[346089017,1734697846689,-500.0,0.00023013,6]
[346089018,1734697846698,-500.0,0.00023013,6]
[346089019,1734697846708,-500.0,0.00023013,6]
[346089020,1734697846718,-500.0,0.00023013,6]
[346089021,1734697846727,-769.76,0.00023013,6]
[346089022,1734697846737,-500.0,0.00023013,6]
[346089023,1734697846747,-500.0,0.00023013,6]
[346089024,1734697846756,-629.1,0.00023013,6]
[346089025,1734697846765,-1059.62,0.00023013,6]
[346089026,1734697846774,-500.0,0.00023013,6]
[346089027,1734697846783,-500.0,0.00023013,6]
[346089028,1734697846792,-500.0,0.00023013,6]
[346089029,1734697846801,-1107.46,0.00023013,6]
[346089030,1734697846811,-500.0,0.00023013,6]
[346089031,1734697846823,-530.11,0.00023013,6]
[346089032,1734697846833,-1410.83,0.00023013,6]
[346089033,1734697846842,-500.0,0.00023013,6]
[346089034,1734697846851,-500.0,0.00023013,6]
[346089035,1734697846860,-527.67,0.00023013,6]
[346089036,1734697846870,-500.0,0.00023013,6]
[346089037,1734697846879,-500.0,0.00023013,6]
[346089038,1734697846888,-500.0,0.00023013,6]
[346089040,1734697846897,-9989.69,0.00023013,6]
[346089041,1734697846906,-500.0,0.00023013,6]
[346089042,1734697846915,-240.0,0.00023014,2]
[346089043,1734697846925,-1000.0,0.0002325,2]
[346089044,1734697846934,-160.0,0.00023265,2]
[346089045,1734697846944,-160.0,0.00023286,2]
[346089046,1734697846953,-500.0,0.00023287,6]
[346089047,1734697846963,-552.87,0.00023287,6]
[346089048,1734697846973,-500.0,0.00023287,6]
[346089049,1734697846982,-500.0,0.00023287,6]
[346089050,1734697846995,-598.59,0.00023287,6]
[346089051,1734697847004,-500.0,0.00023287,6]
[346089052,1734697847013,-500.0,0.00023287,6]
[346089053,1734697847023,-500.0,0.00023287,6]
[346089054,1734697847034,-500.0,0.00023287,6]
[346089055,1734697847044,-500.0,0.00023287,6]
[346089056,1734697847053,-500.0,0.00023287,6]
[346089057,1734697847067,-500.0,0.00023287,6]
[346089058,1734697847077,-683.33,0.00023287,6]
[346089059,1734697847086,-500.0,0.00023287,6]
[346089060,1734697847095,-533.26,0.00023287,6]
[346089061,1734697847105,-500.0,0.00023287,6]
[346089062,1734697847114,-500.0,0.00023287,6]
[346089063,1734697847123,-977.06,0.00023287,9]
[346089064,1734697847132,-500.0,0.00023287,6]
[346089065,1734697847142,-500.0,0.00023287,6]
[346089066,1734697847151,-500.0,0.00023287,6]
[346089067,1734697847160,-500.0,0.00023287,6]
[346089068,1734697847170,-500.0,0.00023287,6]
[346089069,1734697847179,-500.0,0.00023287,6]
[346089070,1734697847189,-1901.23,0.00023287,6]
[346089071,1734697847198,-500.0,0.00023287,6]
[346089072,1734697847207,-572.28,0.00023287,6]
[346089073,1734697847216,-509.77,0.00023287,6]
[346089074,1734697847226,-745.59,0.00023287,6]
[346089075,1734697847235,-500.0,0.00023287,6]
[346089076,1734697847244,-631.75,0.00023287,6]
[346089077,1734697847253,-2598.63,0.00023287,6]
[346089078,1734697847262,-5387.38,0.00023287,6]
[346089079,1734697847271,-595.1,0.00023287,6]
[346089080,1734697847281,-3944.95,0.00023287,6]
[346089081,1734697847290,-2330.66,0.00023287,6]
[346089082,1734697847299,-500.0,0.00023287,6]
[346089083,1734697847309,-1274.43,0.00023287,6]
[346089084,1734697847323,-500.0,0.00023287,6]
[346089085,1734697847332,-614.45,0.00023287,6]
[346089086,1734697847342,-500.0,0.00023287,6]
[346089087,1734697847351,-796.85,0.00023287,2]
[346089088,1734697847362,-500.0,0.00023287,6]
[346089089,1734697847371,-500.0,0.00023287,6]
[346089090,1734697847380,-263.73199527,0.00023287,6]
[346089091,1734697847390,-500.0,0.00023287,6]
[346089092,1734697847400,-1979.34,0.00023287,4]
[346089093,1734697847409,-500.0,0.00023287,6]
[346089094,1734697847419,-500.0,0.00023287,6]
[346089095,1734697847428,-500.0,0.00023287,6]
[346089096,1734697847439,-500.0,0.00023287,6]
[346089097,1734697847448,-769.76,0.00023287,6]
[346089098,1734697847457,-500.0,0.00023287,6]
[346089099,1734697847472,-500.0,0.00023287,6]
[346089100,1734697847481,-629.1,0.00023287,6]
[346089101,1734697847490,-1059.62,0.00023287,6]
[346089102,1734697847499,-500.0,0.00023287,6]
[346089103,1734697847508,-500.0,0.00023287,6]
[346089104,1734697847518,-500.0,0.00023287,6]
[346089105,1734697847528,-1107.46,0.00023287,6]
[346089106,1734697847538,-500.0,0.00023287,6]
[346089107,1734697847547,-530.11,0.00023287,6]
[346089108,1734697847557,-1410.83,0.00023287,6]
[346089109,1734697847569,-431.46706074,0.00023287,6]
[346089110,1734697847579,-500.0,0.00023287,6]
[346089111,1734697847588,-527.67,0.00023287,6]
[346089112,1734697847597,-500.0,0.00023287,6]
[346089113,1734697847607,-500.0,0.00023287,6]
[346089114,1734697847616,-500.0,0.00023287,6]
[346089115,1734697847625,-9989.69,0.00023287,6]
[346089116,1734697847634,-500.0,0.00023287,6]
[346089117,1734697847644,-601.48352841,0.00023311,2]
[346089118,1734697847653,-506.45024159,0.00023395,2]
[346089119,1734697847663,-500.0,0.00023561,6]
[346089120,1734697847672,-552.87,0.00023561,6]
[346089121,1734697847681,-536.27409508,0.00023561,6]
[346089122,1734697847691,-500.0,0.00023561,6]
[346089123,1734697847701,-598.59,0.00023561,6]
[346089124,1734697847711,-500.0,0.00023561,6]
[346089125,1734697847722,-500.0,0.00023561,6]
[346089126,1734697847731,-500.0,0.00023561,6]
[346089127,1734697847740,-385.89902549,0.00023561,6]
[346089128,1734697847750,-500.0,0.00023561,6]
[346089129,1734697847760,-500.0,0.00023561,6]
[346089130,1734697847769,-500.0,0.00023561,6]
[346089131,1734697847779,-683.33,0.00023561,6]
[346089132,1734697847789,-500.0,0.00023561,6]
[346089133,1734697847798,-533.26,0.00023561,6]
[346089134,1734697847807,-500.0,0.00023561,6]
[346089135,1734697847817,-500.0,0.00023561,6]
[346089136,1734697847827,-500.0,0.00023561,6]
[346089137,1734697847836,-500.0,0.00023561,6]
[346089138,1734697847845,-500.0,0.00023561,6]
[346089139,1734697847855,-255.80364477,0.00023561,6]
[346089140,1734697847864,-500.0,0.00023561,6]
[346089141,1734697847874,-500.0,0.00023561,6]
[346089142,1734697847883,-1901.23,0.00023561,6]
[346089143,1734697847893,-500.0,0.00023561,6]
[346089144,1734697847902,-572.28,0.00023561,6]
[346089145,1734697847912,-509.77,0.00023561,6]
[346089146,1734697847921,-745.59,0.00023561,6]
[346089147,1734697847930,-500.0,0.00023561,6]
[346089148,1734697847939,-631.75,0.00023561,6]
[346089149,1734697847948,-2598.63,0.00023561,6]
[346089150,1734697847957,-5387.38,0.00023561,6]
[346089151,1734697847966,-595.1,0.00023561,6]
[346089152,1734697847975,-3944.95,0.00023561,6]
[346089153,1734697847989,-2330.66,0.00023561,6]
[346089154,1734697847998,-500.0,0.00023561,6]
[346089155,1734697848007,-1274.43,0.00023561,6]
[346089156,1734697848016,-500.0,0.00023561,6]
[346089157,1734697848026,-614.45,0.00023561,6]
[346089158,1734697848036,-500.0,0.00023561,6]
[346089159,1734697848047,-796.85,0.00023561,2]
[346089160,1734697848056,-500.0,0.00023561,6]
[346089161,1734697848068,-500.0,0.00023561,6]
[346089162,1734697848078,-500.0,0.00023561,6]
[346089163,1734697848088,-500.0,0.00023561,6]
[346089164,1734697848097,-500.0,0.00023561,6]
[346089165,1734697848108,-500.0,0.00023561,6]
[346089166,1734697848118,-500.0,0.00023561,6]
[346089167,1734697848128,-769.76,0.00023561,6]
[346089168,1734697848140,-500.0,0.00023561,6]
[346089169,1734697848150,-500.0,0.00023561,6]
[346089170,1734697848159,-629.1,0.00023561,6]
[346089171,1734697848169,-1059.62,0.00023561,6]
[346089172,1734697848179,-453.37410555,0.00023561,6]
[346089173,1734697848189,-500.0,0.00023561,6]
[346089174,1734697848199,-500.0,0.00023561,6]
[346089175,1734697848208,-1107.46,0.00023561,6]
[346089176,1734697848217,-500.0,0.00023561,6]
[346089177,1734697848227,-530.11,0.00023561,6]
[346089178,1734697848238,-1410.83,0.00023561,6]
[346089179,1734697848247,-500.0,0.00023561,6]
[346089180,1734697848257,-527.67,0.00023561,6]
[346089181,1734697848267,-363.81650576,0.00023561,6]
[346089182,1734697848276,-500.0,0.00023561,6]
[346089183,1734697848286,-500.0,0.00023561,6]
[346089184,1734697848295,-9989.69,0.00023561,6]
[346089185,1734697848305,-500.0,0.00023561,6]
[346089186,1734697848314,-468.476,0.0002357,2]
[346089187,1734697848326,-1500.0,0.00023722,2]
[346089188,1734697848335,-500.0,0.00023835,6]
[346089189,1734697848345,-552.87,0.00023835,6]
[346089190,1734697848354,-500.0,0.00023835,6]
[346089191,1734697848364,-598.59,0.00023835,6]
[346089192,1734697848374,-500.0,0.00023835,6]
[346089193,1734697848386,-262.51430675,0.00023835,6]
[346089194,1734697848396,-500.0,0.00023835,6]
[346089195,1734697848405,-500.0,0.00023835,6]
[346089196,1734697848414,-500.0,0.00023835,6]
[346089197,1734697848423,-500.0,0.00023835,6]
[346089198,1734697848433,-683.33,0.00023835,6]
[346089199,1734697848442,-500.0,0.00023835,6]
[346089200,1734697848451,-533.26,0.00023835,6]
[346089201,1734697848461,-500.0,0.00023835,6]
[346089202,1734697848470,-500.0,0.00023835,6]
[346089203,1734697848480,-500.0,0.00023835,6]
[346089204,1734697848490,-500.0,0.00023835,6]
[346089205,1734697848500,-500.0,0.00023835,6]
[346089206,1734697848510,-500.0,0.00023835,6]
[346089207,1734697848519,-500.0,0.00023835,6]
[346089208,1734697848529,-1901.23,0.00023835,6]
[346089209,1734697848539,-500.0,0.00023835,6]
[346089210,1734697848549,-572.28,0.00023835,6]
[346089211,1734697848559,-509.77,0.00023835,6]
[346089212,1734697848573,-745.59,0.00023835,6]
[346089213,1734697848582,-500.0,0.00023835,6]
[346089214,1734697848592,-631.75,0.00023835,6]
[346089215,1734697848601,-2598.63,0.00023835,6]
[346089216,1734697848612,-5387.38,0.00023835,6]
[346089217,1734697848621,-595.1,0.00023835,6]
[346089218,1734697848631,-3944.95,0.00023835,6]
[346089219,1734697848640,-2330.66,0.00023835,6]
[346089220,1734697848649,-500.0,0.00023835,6]
[346089221,1734697848658,-1274.43,0.00023835,6]
[346089222,1734697848668,-500.0,0.00023835,6]
[346089223,1734697848678,-614.45,0.00023835,6]
[346089224,1734697848687,-500.0,0.00023835,6]
[346089225,1734697848696,-796.85,0.00023835,2]
[346089226,1734697848706,-500.0,0.00023835,6]
[346089227,1734697848715,-500.0,0.00023835,6]
[346089228,1734697848725,-500.0,0.00023835,6]
[346089229,1734697848734,-500.0,0.00023835,6]
[346089230,1734697848744,-570.05413273,0.00023835,6]
[346089231,1734697848753,-500.0,0.00023835,6]
[346089232,1734697848764,-328.27284303,0.00023835,6]
[346089233,1734697848773,-769.76,0.00023835,6]
[346089234,1734697848927,-500.0,0.00023835,6]
[346089235,1734697848937,-154.43157748,0.00023835,6]
[346089236,1734697848947,-629.1,0.00023835,6]
[346089237,1734697848957,-1059.62,0.00023835,6]
[346089238,1734697848966,-500.0,0.00023835,6]
[346089239,1734697848976,-500.0,0.00023835,6]
[346089240,1734697848988,-1107.46,0.00023835,6]
[346089241,1734697848998,-500.0,0.00023835,6]
[346089242,1734697849008,-530.11,0.00023835,6]
[346089243,1734697849018,-1410.83,0.00023835,6]
[346089244,1734697849029,-500.0,0.00023835,6]
[346089245,1734697849039,-527.67,0.00023835,6]
[346089246,1734697849048,-500.0,0.00023835,6]
[346089247,1734697849060,-500.0,0.00023835,6]
[346089248,1734697849073,-9989.69,0.00023835,6]
[346089249,1734697849083,-500.0,0.00023835,6]
[346089250,1734697849093,-543.26469851,0.00023875,2]
[346089251,1734697849103,-1613.30638885,0.00024,2]
[346089252,1734697849113,-506.45024159,0.00024047,2]
[346089253,1734697849123,-500.0,0.00024109,6]
[346089254,1734697849133,-552.87,0.00024109,6]
[346089255,1734697849144,-500.0,0.00024109,6]
[346089256,1734697849158,-598.59,0.00024109,6]
[346089257,1734697849167,-500.0,0.00024109,6]
[346089258,1734697849177,-500.0,0.00024109,6]
[346089259,1734697849186,-500.0,0.00024109,6]
[346089260,1734697849197,-500.0,0.00024109,6]
[346089261,1734697849206,-500.0,0.00024109,6]
[346089262,1734697849215,-683.33,0.00024109,6]
[346089263,1734697849224,-500.0,0.00024109,6]
[346089264,1734697849233,-1000.0,0.00024109,2]
[346089265,1734697849242,-1000.0,0.00024109,2]
[346089266,1734697849251,-1000.0,0.00024109,2]
[346089267,1734697849261,-1000.0,0.00024109,2]
[346089268,1734697849271,-1000.0,0.00024109,2]
[346089269,1734697849280,-1000.0,0.00024109,2]
[346089270,1734697849290,-1000.0,0.00024109,2]
[346089271,1734697849300,-1000.0,0.00024109,2]
[346089272,1734697849309,-1000.0,0.00024109,2]
[346089273,1734697849322,-533.26,0.00024109,6]
[346089274,1734697849333,-500.0,0.00024109,6]
[346089275,1734697849343,-448.04616093,0.00024109,6]
[346089276,1734697849354,-500.0,0.00024109,6]
[346089277,1734697849364,-500.0,0.00024109,6]
[346089278,1734697849375,-500.0,0.00024109,6]
[346089279,1734697849385,-500.0,0.00024109,6]
[346089280,1734697849396,-500.0,0.00024109,6]
[346089281,1734697849406,-1901.23,0.00024109,6]
[346089282,1734697849416,-500.0,0.00024109,6]
[346089283,1734697849425,-572.28,0.00024109,6]
[346089284,1734697849435,-509.77,0.00024109,6]
[346089285,1734697849444,-745.59,0.00024109,6]
[346089286,1734697849454,-500.0,0.00024109,6]
[346089287,1734697849464,-631.75,0.00024109,6]
[346089288,1734697849474,-2598.63,0.00024109,6]
[346089289,1734697849485,-5387.38,0.00024109,6]
[346089290,1734697849495,-595.1,0.00024109,6]
[346089291,1734697849505,-3944.95,0.00024109,6]
[346089292,1734697849515,-2330.66,0.00024109,6]
[346089293,1734697849525,-500.0,0.00024109,6]
[346089294,1734697849535,-1274.43,0.00024109,6]
[346089295,1734697849545,-500.0,0.00024109,6]
[346089296,1734697849555,-614.45,0.00024109,6]
[346089297,1734697849564,-500.0,0.00024109,6]
[346089298,1734697849579,-796.85,0.00024109,2]
[346089299,1734697849588,-500.0,0.00024109,6]
[346089300,1734697849598,-500.0,0.00024109,6]
[346089301,1734697849607,-500.0,0.00024109,6]
[346089302,1734697849617,-500.0,0.00024109,6]
[346089303,1734697849627,-500.0,0.00024109,6]
[346089304,1734697849637,-769.76,0.00024109,6]
[346089305,1734697849646,-500.0,0.00024109,6]
[346089306,1734697849656,-629.1,0.00024109,6]
[346089307,1734697849666,-1059.62,0.00024109,6]
[346089308,1734697849675,-500.0,0.00024109,6]